[Event "*** Titled Tuesday 3|2 Blitz"]
[Site "Chess.com"]
[Date "2017.06.06"]
[Round "9"]
[White "ANLex1963"]
[Black "TregubovP"]
[Result "0-1"]
[WhiteElo "2204"]
[BlackElo "2344"]
[TimeControl "180+2"]
[EndTime "15:51:01 PDT"]
[Termination "TregubovP won by resignation"]

1. Nf3 {[%clk 0:03:02]} 1... c5 {[%clk 0:02:56.8]} 2. g3 {[%clk 0:03:01]} 2...
Nc6 {[%clk 0:02:57.6]} 3. Bg2 {[%clk 0:03:00.6]} 3... g6 {[%clk 0:02:59.2]} 4.
O-O {[%clk 0:02:58.5]} 4... Bg7 {[%clk 0:03:00.7]} 5. c4 {[%clk 0:02:58]} 5...
e6 {[%clk 0:02:58.1]} 6. Nc3 {[%clk 0:02:56.6]} 6... Nge7 {[%clk 0:02:59.7]} 7.
d4 {[%clk 0:02:57.2]} 7... cxd4 {[%clk 0:02:59.9]} 8. Nb5 {[%clk 0:02:56.1]}
8... Nf5 {[%clk 0:02:53.2]} 9. g4 {[%clk 0:02:42.7]} 9... Nfe7 {[%clk
0:02:38.1]} 10. Nd6+ {[%clk 0:02:34.2]} 10... Kf8 {[%clk 0:02:39]} 11. e3 {[%clk
0:02:33.5]} 11... h5 {[%clk 0:02:17.9]} 12. h3 {[%clk 0:02:28.4]} 12... hxg4
{[%clk 0:02:16.1]} 13. hxg4 {[%clk 0:02:28.3]} 13... Qc7 {[%clk 0:01:54.6]} 14.
Nb5 {[%clk 0:02:23.2]} 14... Qb6 {[%clk 0:01:48.9]} 15. exd4 {[%clk 0:02:23]}
15... a6 {[%clk 0:01:48.5]} 16. Be3 {[%clk 0:02:07.8]} 16... axb5 {[%clk
0:01:47.6]} 17. d5 {[%clk 0:02:07.8]} 17... Qc7 {[%clk 0:01:46.7]} 18. dxc6
{[%clk 0:02:06.9]} 18... dxc6 {[%clk 0:01:42]} 19. cxb5 {[%clk 0:01:54]} 19...
e5 {[%clk 0:01:42.9]} 20. b6 {[%clk 0:01:42.5]} 20... Qd7 {[%clk 0:01:43.8]} 21.
Qxd7 {[%clk 0:01:32.9]} 21... Bxd7 {[%clk 0:01:44.1]} 22. Bc5 {[%clk 0:01:17.5]}
22... Bxg4 {[%clk 0:01:35.8]} 23. Ng5 {[%clk 0:01:11.7]} 23... f6 {[%clk
0:01:34.1]} 24. f3 {[%clk 0:00:58]} 24... Bf5 {[%clk 0:01:29.2]} 25. Ne4 {[%clk
0:00:57.7]} 25... Bxe4 {[%clk 0:01:21.7]} 26. fxe4 {[%clk 0:00:57.1]} 26... Kf7
{[%clk 0:01:23.2]} 27. a4 {[%clk 0:00:50.7]} 27... Rhd8 {[%clk 0:01:09.8]} 28.
a5 {[%clk 0:00:44.4]} 28... Bf8 {[%clk 0:01:07.4]} 29. b4 {[%clk 0:00:42.5]}
29... Nc8 {[%clk 0:01:03.3]} 30. Bh3 {[%clk 0:00:40.2]} 30... Nd6 {[%clk
0:00:59.9]} 31. Rfd1 {[%clk 0:00:31.7]} 31... Nxe4 {[%clk 0:00:50.5]} 32. Rxd8
{[%clk 0:00:24.8]} 32... Rxd8 {[%clk 0:00:45.6]} 33. Bxf8 {[%clk 0:00:25.2]}
33... Rxf8 {[%clk 0:00:40.4]} 34. a6 {[%clk 0:00:25.9]} 34... bxa6 {[%clk
0:00:41.3]} 35. Rxa6 {[%clk 0:00:26.2]} 35... Rb8 {[%clk 0:00:42.1]} 36. Bg2
{[%clk 0:00:22.1]} 36... f5 {[%clk 0:00:39.9]} 37. Bxe4 {[%clk 0:00:17.3]} 37...
fxe4 {[%clk 0:00:40.3]} 38. Kf2 {[%clk 0:00:18.1]} 38... Ke6 {[%clk 0:00:39.5]}
39. Ke3 {[%clk 0:00:18.9]} 39... Kd5 {[%clk 0:00:40.3]} 40. Ra5+ {[%clk
0:00:18.7]} 40... Kd6 {[%clk 0:00:39.4]} 41. Ra6 {[%clk 0:00:18.1]} 41... Rf8
{[%clk 0:00:38.4]} 42. Kxe4 {[%clk 0:00:16.9]} 42... Rf4+ {[%clk 0:00:39.1]} 43.
Ke3 {[%clk 0:00:16.7]} 43... Rxb4 {[%clk 0:00:40.5]} 44. Ra8 {[%clk 0:00:14.3]}
44... Rxb6 {[%clk 0:00:30.5]} 45. Rg8 {[%clk 0:00:14.6]} 45... Rb3+ {[%clk
0:00:31.3]} 46. Kd2 {[%clk 0:00:14.4]} 46... Rg3 {[%clk 0:00:31.2]} 47. Ke2
{[%clk 0:00:13.4]} 47... c5 {[%clk 0:00:30.3]} 48. Kf2 {[%clk 0:00:13.6]} 48...
Rg4 {[%clk 0:00:27.4]} 0-1

[Event "*** Titled Tuesday 3|2 Blitz"]
[Site "Chess.com"]
[Date "2017.06.06"]
[Round "9"]
[White "IIIlllII1llIl"]
[Black "Keranke"]
[Result "0-1"]
[WhiteElo "2533"]
[BlackElo "2672"]
[TimeControl "180+2"]
[EndTime "15:51:09 PDT"]
[Termination "Keranke won by resignation"]

1. e4 {[%clk 0:03:00.5]} 1... g6 {[%clk 0:03:00.8]} 2. d4 {[%clk 0:02:58.6]}
2... Bg7 {[%clk 0:03:01.5]} 3. Be3 {[%clk 0:02:56.6]} 3... d6 {[%clk 0:03:02.6]}
4. Qd2 {[%clk 0:02:50.1]} 4... Nf6 {[%clk 0:03:01.7]} 5. f3 {[%clk 0:02:48.3]}
5... O-O {[%clk 0:03:01.7]} 6. h4 {[%clk 0:02:44.6]} 6... h5 {[%clk 0:03:01.8]}
7. Nc3 {[%clk 0:02:40.5]} 7... a6 {[%clk 0:02:54.2]} 8. Bh6 {[%clk 0:02:31.3]}
8... c5 {[%clk 0:02:52.3]} 9. d5 {[%clk 0:02:27.9]} 9... b5 {[%clk 0:02:51.7]}
10. g4 {[%clk 0:02:27.9]} 10... b4 {[%clk 0:02:49.6]} 11. Nce2 {[%clk
0:02:06.9]} 11... Nbd7 {[%clk 0:02:43.5]} 12. Ng3 {[%clk 0:01:59.1]} 12... hxg4
{[%clk 0:02:07]} 13. h5 {[%clk 0:01:55.2]} 13... Ne5 {[%clk 0:02:05.3]} 14. hxg6
{[%clk 0:01:14.1]} 14... fxg6 {[%clk 0:02:05.7]} 15. f4 {[%clk 0:01:05]} 15...
Nf3+ {[%clk 0:01:59.5]} 16. Nxf3 {[%clk 0:01:05.3]} 16... gxf3 {[%clk
0:02:01.4]} 17. f5 {[%clk 0:00:50.9]} 17... f2+ {[%clk 0:01:47.4]} 18. Kd1
{[%clk 0:00:49.9]} 18... Nxe4 {[%clk 0:00:54.3]} 19. Nxe4 {[%clk 0:00:48.9]}
19... Bxf5 {[%clk 0:00:55.4]} 20. Nxf2 {[%clk 0:00:31.6]} 20... Bxb2 {[%clk
0:00:52.5]} 21. Rb1 {[%clk 0:00:27.5]} 21... Bc3 {[%clk 0:00:50.8]} 22. Qg5
{[%clk 0:00:22.3]} 22... Rf6 {[%clk 0:00:41.8]} 23. Qh4 {[%clk 0:00:20.2]} 23...
Qa5 {[%clk 0:00:37.2]} 24. Bd3 {[%clk 0:00:19.2]} 24... Qxa2 {[%clk 0:00:31.9]}
25. Rc1 {[%clk 0:00:20.1]} 25... Bxd3 {[%clk 0:00:26.8]} 26. Nxd3 {[%clk
0:00:22]} 26... Qxd5 {[%clk 0:00:28]} 27. Qh3 {[%clk 0:00:15.3]} 27... Rf3
{[%clk 0:00:24.6]} 28. Qh2 {[%clk 0:00:08.9]} 28... c4 {[%clk 0:00:16.9]} 29.
Bd2 {[%clk 0:00:05.6]} 29... Bg7 {[%clk 0:00:08.4]} 30. Nf4 {[%clk 0:00:04.7]}
30... Qf5 {[%clk 0:00:06.9]} 31. Ne2 {[%clk 0:00:04.5]} 31... c3 {[%clk
0:00:07.3]} 32. Bf4 {[%clk 0:00:04.8]} 32... Qd5+ {[%clk 0:00:07.5]} 33. Ke1
{[%clk 0:00:05.7]} 33... Rf8 {[%clk 0:00:08.8]} 34. Rd1 {[%clk 0:00:06.4]} 34...
Qe4 {[%clk 0:00:09.6]} 35. Bg3 {[%clk 0:00:05.7]} 35... b3 {[%clk 0:00:09.4]}
36. cxb3 {[%clk 0:00:05.4]} 36... c2 {[%clk 0:00:10.9]} 37. Qh7+ {[%clk
0:00:05]} 37... Kf7 {[%clk 0:00:11.4]} 38. Rc1 {[%clk 0:00:06.3]} 38... Rxg3
{[%clk 0:00:10.8]} 39. Rf1+ {[%clk 0:00:07.6]} 39... Rf3 {[%clk 0:00:12.3]} 40.
Rxf3+ {[%clk 0:00:08.9]} 40... Qxf3 {[%clk 0:00:14.2]} 41. Qh2 {[%clk
0:00:09.2]} 41... Kg8 {[%clk 0:00:13.8]} 42. Rxc2 {[%clk 0:00:09.1]} 42... Qxb3
{[%clk 0:00:14.7]} 43. Kd2 {[%clk 0:00:08.6]} 43... Qb4+ {[%clk 0:00:15.1]} 44.
Ke3 {[%clk 0:00:08.1]} 44... Be5 {[%clk 0:00:12.3]} 45. Qg2 {[%clk 0:00:06.4]}
45... Qb3+ {[%clk 0:00:12.5]} 46. Kd2 {[%clk 0:00:07]} 46... Kg7 {[%clk
0:00:13.1]} 47. Qe4 {[%clk 0:00:05.5]} 47... a5 {[%clk 0:00:11.3]} 48. Rc7
{[%clk 0:00:05.6]} 48... Qb2+ {[%clk 0:00:10.9]} 49. Kd3 {[%clk 0:00:04.8]}
49... Qb1+ {[%clk 0:00:11.6]} 50. Ke3 {[%clk 0:00:05.1]} 50... Qb6+ {[%clk
0:00:12.7]} 51. Nd4 {[%clk 0:00:04.7]} 51... Bxd4+ {[%clk 0:00:11.8]} 52. Qxd4+
{[%clk 0:00:05.7]} 52... Qxd4+ {[%clk 0:00:13.3]} 53. Kxd4 {[%clk 0:00:07.6]}
53... Kf6 {[%clk 0:00:14.6]} 54. Ra7 {[%clk 0:00:08.3]} 54... g5 {[%clk
0:00:15.7]} 55. Kd5 {[%clk 0:00:08.7]} 55... g4 {[%clk 0:00:16.4]} 56. Rxa5
{[%clk 0:00:10]} 56... g3 {[%clk 0:00:17.5]} 57. Ra2 {[%clk 0:00:10.5]} 57...
Rg8 {[%clk 0:00:18.1]} 58. Rg2 {[%clk 0:00:11.3]} 58... Kf5 {[%clk 0:00:19.5]}
59. Rg1 {[%clk 0:00:12.4]} 59... g2 {[%clk 0:00:20.6]} 60. Kd4 {[%clk
0:00:12.9]} 0-1

[Event "*** Titled Tuesday 3|2 Blitz"]
[Site "Chess.com"]
[Date "2017.06.06"]
[Round "9"]
[White "WeiYi1999"]
[Black "cukus"]
[Result "1/2-1/2"]
[WhiteElo "2147"]
[BlackElo "2434"]
[TimeControl "180+2"]
[EndTime "15:51:21 PDT"]
[Termination "Game drawn by agreement"]

1. e4 {[%clk 0:03:02]} 1... c5 {[%clk 0:03:00.2]} 2. Nf3 {[%clk 0:03:03.4]} 2...
Nc6 {[%clk 0:03:01.4]} 3. d4 {[%clk 0:03:02.5]} 3... cxd4 {[%clk 0:03:02.6]} 4.
Nxd4 {[%clk 0:03:04.4]} 4... Nf6 {[%clk 0:03:03.9]} 5. Nc3 {[%clk 0:03:05.1]}
5... e5 {[%clk 0:03:05.1]} 6. Ndb5 {[%clk 0:03:05.9]} 6... d6 {[%clk 0:03:06.5]}
7. Nd5 {[%clk 0:03:02.6]} 7... Nxd5 {[%clk 0:02:41]} 8. exd5 {[%clk 0:03:04.5]}
8... Nb8 {[%clk 0:02:40]} 9. c4 {[%clk 0:03:01]} 9... a6 {[%clk 0:02:39.3]} 10.
Qa4 {[%clk 0:02:55.3]} 10... Nd7 {[%clk 0:02:32.3]} 11. Bg5 {[%clk 0:02:51.1]}
11... Qxg5 {[%clk 0:02:16.4]} 12. Nc7+ {[%clk 0:02:47.8]} 12... Ke7 {[%clk
0:02:17.6]} 13. Nxa8 {[%clk 0:02:49.7]} 13... Qg4 {[%clk 0:02:13.5]} 14. h3
{[%clk 0:02:38.8]} 14... Qe4+ {[%clk 0:02:07.4]} 15. Be2 {[%clk 0:02:35.1]}
15... Qxg2 {[%clk 0:01:56.5]} 16. Rf1 {[%clk 0:02:35.7]} 16... Nc5 {[%clk
0:01:52]} 17. Qa5 {[%clk 0:02:31.1]} 17... Qxh3 {[%clk 0:01:43.1]} 18. O-O-O
{[%clk 0:02:25.6]} 18... g6 {[%clk 0:01:40.8]} 19. f4 {[%clk 0:02:23.7]} 19...
Qe3+ {[%clk 0:01:33.3]} 20. Rd2 {[%clk 0:02:21.5]} 20... Bh6 {[%clk 0:01:26.1]}
21. Rf3 {[%clk 0:02:18.4]} 21... Qe4 {[%clk 0:01:21.3]} 22. Qc7+ {[%clk
0:02:14.8]} 22... Bd7 {[%clk 0:01:19.3]} 23. Nb6 {[%clk 0:02:16.1]} 23... Bxf4
{[%clk 0:01:15.8]} 24. Rxf4 {[%clk 0:02:09.5]} 24... Qxf4 {[%clk 0:01:14.7]} 25.
Nxd7 {[%clk 0:02:10.4]} 25... Nxd7 {[%clk 0:01:14.2]} 26. c5 {[%clk 0:02:12.3]}
26... dxc5 {[%clk 0:01:10.6]} 27. d6+ {[%clk 0:02:14.2]} 27... Ke6 {[%clk
0:01:09.9]} 28. b3 {[%clk 0:01:50.7]} 28... b5 {[%clk 0:01:07.7]} 29. Qc6 {[%clk
0:01:51.3]} 29... Qe3 {[%clk 0:01:02.9]} 30. Qd5+ {[%clk 0:01:46.9]} 30... Kf6
{[%clk 0:01:01.8]} 31. Kc2 {[%clk 0:01:48.8]} 31... Kg7 {[%clk 0:00:58.9]} 32.
Bd3 {[%clk 0:01:40.9]} 32... Nf6 {[%clk 0:00:57.1]} 33. Qb7 {[%clk 0:01:37.9]}
33... h5 {[%clk 0:00:51.4]} 34. Bxg6 {[%clk 0:01:34.1]} 34... Kxg6 {[%clk
0:00:51.9]} 35. d7 {[%clk 0:01:34.8]} 35... Nxd7 {[%clk 0:00:48.7]} 36. Qxd7
{[%clk 0:01:32.2]} 36... Qe4+ {[%clk 0:00:47.6]} 37. Kb2 {[%clk 0:01:33.1]}
37... c4 {[%clk 0:00:45.1]} 38. Qd6+ {[%clk 0:01:30.8]} 38... f6 {[%clk
0:00:44]} 39. Rd1 {[%clk 0:01:26.2]} 39... Qe3 {[%clk 0:00:37]} 40. Kb1 {[%clk
0:01:16.4]} 40... cxb3 {[%clk 0:00:35.9]} 41. Qd7 {[%clk 0:01:13.4]} 41... bxa2+
{[%clk 0:00:33.8]} 42. Kxa2 {[%clk 0:01:15.3]} 42... Qe2+ {[%clk 0:00:32.4]} 43.
Rd2 {[%clk 0:01:14.7]} 43... Qc4+ {[%clk 0:00:30.7]} 44. Ka1 {[%clk 0:01:13.1]}
44... Qc3+ {[%clk 0:00:28.7]} 45. Ka2 {[%clk 0:01:11.1]} 45... Qc4+ {[%clk
0:00:21.8]} 46. Ka1 {[%clk 0:01:09.8]} 46... Qe4 {[%clk 0:00:21.9]} 47. Rd1
{[%clk 0:00:53.7]} 47... Qg4 {[%clk 0:00:20.3]} 48. Qd3+ {[%clk 0:00:50.7]}
48... Kg7 {[%clk 0:00:19]} 49. Qd6 {[%clk 0:00:52.6]} 49... h4 {[%clk
0:00:17.3]} 50. Qe7+ {[%clk 0:00:53.1]} 50... Kg6 {[%clk 0:00:15]} 51. Rd7
{[%clk 0:00:53.1]} 51... Kf5 {[%clk 0:00:13]} 52. Rd2 {[%clk 0:00:50.1]} 52...
Qg1+ {[%clk 0:00:09.6]} 53. Kb2 {[%clk 0:00:51.3]} 53... h3 {[%clk 0:00:10.3]}
54. Qd7+ {[%clk 0:00:47.4]} 54... Kg6 {[%clk 0:00:11.2]} 55. Qd5 {[%clk
0:00:49.3]} 55... h2 {[%clk 0:00:08.2]} 56. Rg2+ {[%clk 0:00:46.1]} 56... Qxg2+
{[%clk 0:00:09.5]} 57. Qxg2+ {[%clk 0:00:47.8]} 57... Kf7 {[%clk 0:00:11.1]} 58.
Qb7+ {[%clk 0:00:44]} 58... Ke6 {[%clk 0:00:12.4]} 59. Qc6+ {[%clk 0:00:44.1]}
59... Kf5 {[%clk 0:00:13.9]} 60. Qf3+ {[%clk 0:00:42.5]} 60... Kg6 {[%clk
0:00:15.3]} 61. Qg2+ {[%clk 0:00:40.8]} 61... Kf7 {[%clk 0:00:16.8]} 62. Qb7+
{[%clk 0:00:41.2]} 62... Ke6 {[%clk 0:00:17.7]} 63. Qc6+ {[%clk 0:00:42.3]}
63... Kf5 {[%clk 0:00:15.4]} 64. Qf3+ {[%clk 0:00:42.4]} 64... Kg5 {[%clk
0:00:16]} 65. Qg2+ {[%clk 0:00:43.1]} 1/2-1/2

[Event "*** Titled Tuesday 3|2 Blitz"]
[Site "Chess.com"]
[Date "2017.06.06"]
[Round "9"]
[White "heartofatiger"]
[Black "Grebeniuk-S"]
[Result "0-1"]
[WhiteElo "2382"]
[BlackElo "2441"]
[TimeControl "180+2"]
[EndTime "15:51:24 PDT"]
[Termination "Grebeniuk-S won on time"]

1. d4 {[%clk 0:03:02]} 1... f5 {[%clk 0:02:52.9]} 2. Nc3 {[%clk 0:03:01.7]} 2...
d5 {[%clk 0:02:50.2]} 3. Bf4 {[%clk 0:03:02.2]} 3... Nf6 {[%clk 0:02:47.6]} 4.
e3 {[%clk 0:02:57.6]} 4... e6 {[%clk 0:02:45.7]} 5. h3 {[%clk 0:02:55.1]} 5...
Bd6 {[%clk 0:02:46.7]} 6. Nf3 {[%clk 0:02:48.9]} 6... O-O {[%clk 0:02:47]} 7.
Bd3 {[%clk 0:02:48.8]} 7... b6 {[%clk 0:02:47.4]} 8. Qe2 {[%clk 0:02:46.8]} 8...
a5 {[%clk 0:02:41.4]} 9. Ne5 {[%clk 0:02:44.7]} 9... Ba6 {[%clk 0:02:36.6]} 10.
Nb5 {[%clk 0:02:43.6]} 10... Bxb5 {[%clk 0:02:23.5]} 11. Bxb5 {[%clk 0:02:42.5]}
11... Nbd7 {[%clk 0:01:54.4]} 12. O-O {[%clk 0:02:42]} 12... Bxe5 {[%clk
0:01:49]} 13. dxe5 {[%clk 0:02:39.9]} 13... Ne8 {[%clk 0:01:48.1]} 14. Bc6
{[%clk 0:02:27]} 14... Ra7 {[%clk 0:01:35.4]} 15. c4 {[%clk 0:02:25.1]} 15...
Nb8 {[%clk 0:01:32.1]} 16. Ba4 {[%clk 0:02:17.3]} 16... c6 {[%clk 0:01:26.6]}
17. Rac1 {[%clk 0:02:06.7]} 17... Nc7 {[%clk 0:00:57.6]} 18. Rfd1 {[%clk
0:02:06.6]} 18... Qe7 {[%clk 0:00:49.6]} 19. a3 {[%clk 0:02:04.1]} 19... dxc4
{[%clk 0:00:27.2]} 20. Qxc4 {[%clk 0:01:49.7]} 20... b5 {[%clk 0:00:28.3]} 21.
Qd4 {[%clk 0:01:50.6]} 21... Nd5 {[%clk 0:00:28.8]} 22. Bb3 {[%clk 0:01:41.1]}
22... a4 {[%clk 0:00:25.3]} 23. Ba2 {[%clk 0:01:29.3]} 23... Rd7 {[%clk
0:00:26.1]} 24. Bg3 {[%clk 0:01:04.5]} 24... h6 {[%clk 0:00:25.2]} 25. Qc5
{[%clk 0:00:55.7]} 25... Qf7 {[%clk 0:00:19.3]} 26. f3 {[%clk 0:00:37.6]} 26...
Rfd8 {[%clk 0:00:13.5]} 27. Kh2 {[%clk 0:00:21.2]} 27... Nc7 {[%clk 0:00:11.2]}
28. Rd6 {[%clk 0:00:20]} 28... Kh7 {[%clk 0:00:08]} 29. Rcd1 {[%clk 0:00:19.9]}
29... Nd5 {[%clk 0:00:07.9]} 30. Bb1 {[%clk 0:00:16.1]} 30... Rxd6 {[%clk
0:00:06.2]} 31. exd6 {[%clk 0:00:16.1]} 31... Nd7 {[%clk 0:00:07.7]} 32. Qd4
{[%clk 0:00:15.2]} 32... Kh8 {[%clk 0:00:04.5]} 33. e4 {[%clk 0:00:16.3]} 33...
fxe4 {[%clk 0:00:05.5]} 34. fxe4 {[%clk 0:00:15.5]} 34... N5f6 {[%clk
0:00:06.6]} 35. Rf1 {[%clk 0:00:15.5]} 35... e5 {[%clk 0:00:07.4]} 36. Qa7
{[%clk 0:00:14]} 36... Qe6 {[%clk 0:00:06.7]} 37. Qc7 {[%clk 0:00:13.3]} 37...
Re8 {[%clk 0:00:05.9]} 38. Qxc6 {[%clk 0:00:14.2]} 38... Rd8 {[%clk 0:00:06.8]}
39. Qc7 {[%clk 0:00:15.2]} 39... Re8 {[%clk 0:00:07.8]} 40. Qc6 {[%clk
0:00:16.4]} 40... Rd8 {[%clk 0:00:08.6]} 41. Qxb5 {[%clk 0:00:17.4]} 41... Qxd6
{[%clk 0:00:09.7]} 42. Qxa4 {[%clk 0:00:17.6]} 42... Nc5 {[%clk 0:00:10.1]} 43.
Qc2 {[%clk 0:00:14.6]} 43... Ne6 {[%clk 0:00:10.9]} 44. Qe2 {[%clk 0:00:13.9]}
44... Nf4 {[%clk 0:00:11.8]} 45. Qe3 {[%clk 0:00:12.8]} 45... N6h5 {[%clk
0:00:11.3]} 46. Bh4 {[%clk 0:00:12.7]} 46... Rc8 {[%clk 0:00:10.3]} 47. Rc1
{[%clk 0:00:09.6]} 47... Rf8 {[%clk 0:00:10.8]} 48. Ba2 {[%clk 0:00:10.1]} 48...
Qg6 {[%clk 0:00:11.6]} 49. Rc2 {[%clk 0:00:08.1]} 49... Kh7 {[%clk 0:00:10.8]}
50. Bd5 {[%clk 0:00:08.5]} 50... Nxd5 {[%clk 0:00:11.1]} 51. Qc5 {[%clk
0:00:04.3]} 51... Qxe4 {[%clk 0:00:07.4]} 0-1

[Event "*** Titled Tuesday 3|2 Blitz"]
[Site "Chess.com"]
[Date "2017.06.06"]
[Round "9"]
[White "ChessQueen"]
[Black "NTBT_DHS"]
[Result "1-0"]
[WhiteElo "2508"]
[BlackElo "2431"]
[TimeControl "180+2"]
[EndTime "15:51:33 PDT"]
[Termination "ChessQueen won by checkmate"]

1. e4 {[%clk 0:03:02]} 1... g6 {[%clk 0:03:00.6]} 2. d4 {[%clk 0:03:02.5]} 2...
Bg7 {[%clk 0:03:02]} 3. Nc3 {[%clk 0:03:03.7]} 3... d6 {[%clk 0:03:01.6]} 4. Be3
{[%clk 0:03:04.4]} 4... Nd7 {[%clk 0:03:02.2]} 5. Qd2 {[%clk 0:03:05.2]} 5... a6
{[%clk 0:03:03.3]} 6. a4 {[%clk 0:03:03.4]} 6... b6 {[%clk 0:03:04.2]} 7. Bc4
{[%clk 0:03:02.6]} 7... Ngf6 {[%clk 0:03:02.1]} 8. Nf3 {[%clk 0:02:57.8]} 8...
Bb7 {[%clk 0:03:01.5]} 9. e5 {[%clk 0:02:48.1]} 9... Ng4 {[%clk 0:02:45.2]} 10.
e6 {[%clk 0:02:32.2]} 10... fxe6 {[%clk 0:02:43]} 11. Bxe6 {[%clk 0:02:30]}
11... Bxf3 {[%clk 0:02:41.2]} 12. gxf3 {[%clk 0:02:29.2]} 12... Nxe3 {[%clk
0:02:33]} 13. fxe3 {[%clk 0:02:24.8]} 13... Nf8 {[%clk 0:02:29]} 14. Bd5 {[%clk
0:02:25.1]} 14... Rb8 {[%clk 0:02:20]} 15. Qd3 {[%clk 0:02:24]} 15... e6 {[%clk
0:02:17.7]} 16. Bc6+ {[%clk 0:02:23.9]} 16... Kf7 {[%clk 0:02:18.9]} 17. Qxa6
{[%clk 0:02:24]} 17... Qh4+ {[%clk 0:02:20.1]} 18. Kd2 {[%clk 0:02:01.5]} 18...
Bh6 {[%clk 0:02:16.7]} 19. f4 {[%clk 0:02:02.7]} 19... d5 {[%clk 0:02:10.9]} 20.
Qa7 {[%clk 0:01:33.6]} 20... Qd8 {[%clk 0:02:11.5]} 21. Nb5 {[%clk 0:01:31.4]}
21... Rc8 {[%clk 0:02:04.3]} 22. Bb7 {[%clk 0:01:32.3]} 22... Rb8 {[%clk
0:02:04.8]} 23. Ba6 {[%clk 0:01:25.3]} 23... Ra8 {[%clk 0:02:06]} 24. Qxc7+
{[%clk 0:01:26.3]} 24... Qxc7 {[%clk 0:02:07.3]} 25. Nxc7 {[%clk 0:01:27.4]}
25... Ra7 {[%clk 0:02:09.2]} 26. Nxd5 {[%clk 0:01:22.7]} 26... exd5 {[%clk
0:02:09.4]} 27. Bd3 {[%clk 0:01:21.6]} 27... Nd7 {[%clk 0:02:10.1]} 28. c4
{[%clk 0:01:12.5]} 28... dxc4 {[%clk 0:02:03.1]} 29. Bxc4+ {[%clk 0:01:13.6]}
29... Ke7 {[%clk 0:02:05]} 30. Kd3 {[%clk 0:01:12.3]} 30... Rha8 {[%clk
0:02:05.7]} 31. b3 {[%clk 0:01:12.3]} 31... Bg7 {[%clk 0:02:01.7]} 32. Rhg1
{[%clk 0:01:06.4]} 32... Rd8 {[%clk 0:02:01.1]} 33. h4 {[%clk 0:01:04.2]} 33...
Nc5+ {[%clk 0:01:56.8]} 34. Ke2 {[%clk 0:00:55.9]} 34... Ne4 {[%clk 0:01:54.9]}
35. h5 {[%clk 0:00:56.9]} 35... Kf6 {[%clk 0:01:46.5]} 36. hxg6 {[%clk
0:00:53.6]} 36... h5 {[%clk 0:01:40]} 37. Bd3 {[%clk 0:00:48.9]} 37... Re8
{[%clk 0:01:41.1]} 38. Rac1 {[%clk 0:00:47.3]} 38... Nd6 {[%clk 0:01:17.4]} 39.
Rc6 {[%clk 0:00:46.7]} 39... Ke7 {[%clk 0:01:18.9]} 40. Kf3 {[%clk 0:00:30]}
40... Rb8 {[%clk 0:01:13]} 41. Rh1 {[%clk 0:00:28.8]} 41... Kd7 {[%clk
0:01:12.6]} 42. Rcc1 {[%clk 0:00:17]} 42... Ra5 {[%clk 0:01:13.6]} 43. b4 {[%clk
0:00:15.7]} 43... Rd5 {[%clk 0:01:14.5]} 44. Bb1 {[%clk 0:00:09.4]} 44... Rf8
{[%clk 0:01:14.9]} 45. Ba2 {[%clk 0:00:10.2]} 45... Rdf5 {[%clk 0:01:14.7]} 46.
Bb1 {[%clk 0:00:11.4]} 46... Rd5 {[%clk 0:01:14.9]} 47. Ba2 {[%clk 0:00:12.5]}
47... Rdf5 {[%clk 0:01:15.4]} 48. Rcd1 {[%clk 0:00:13.1]} 48... Ra8 {[%clk
0:01:05]} 49. Bb3 {[%clk 0:00:14]} 49... b5 {[%clk 0:01:03.8]} 50. a5 {[%clk
0:00:14.8]} 50... Nc4 {[%clk 0:01:05.3]} 51. Bxc4 {[%clk 0:00:16]} 51... bxc4
{[%clk 0:01:07.2]} 52. Rc1 {[%clk 0:00:16.6]} 52... Rc8 {[%clk 0:01:07.4]} 53.
Rh2 {[%clk 0:00:14.9]} 53... Rb5 {[%clk 0:01:08.2]} 54. a6 {[%clk 0:00:15.7]}
54... Rxb4 {[%clk 0:01:08.2]} 55. Rxh5 {[%clk 0:00:16.4]} 55... Ke6 {[%clk
0:01:07.2]} 56. Ra5 {[%clk 0:00:17.5]} 56... Ra8 {[%clk 0:01:07.9]} 57. a7
{[%clk 0:00:18.5]} 57... Kf6 {[%clk 0:01:06.1]} 58. Ra6+ {[%clk 0:00:19.1]}
58... Ke7 {[%clk 0:01:06.6]} 59. f5 {[%clk 0:00:20.3]} 59... Bf6 {[%clk
0:01:01.7]} 60. Re6+ {[%clk 0:00:20.5]} 60... Kd8 {[%clk 0:01:03.1]} 61. Rxf6
{[%clk 0:00:21.9]} 61... Rxa7 {[%clk 0:01:04.7]} 62. Rf8+ {[%clk 0:00:23.1]}
62... Kc7 {[%clk 0:01:03.2]} 63. Rf7+ {[%clk 0:00:24.4]} 63... Kb6 {[%clk
0:01:04.7]} 64. Rxa7 {[%clk 0:00:25.8]} 64... Kxa7 {[%clk 0:01:06.6]} 65. g7
{[%clk 0:00:27.2]} 65... Rb8 {[%clk 0:01:08.5]} 66. f6 {[%clk 0:00:28]} 66...
Rc8 {[%clk 0:01:08]} 67. f7 {[%clk 0:00:28.4]} 67... c3 {[%clk 0:01:08.9]} 68.
f8=Q {[%clk 0:00:29.3]} 68... Rc7 {[%clk 0:01:10.8]} 69. Qc5+ {[%clk 0:00:29.6]}
69... Rxc5 {[%clk 0:01:11.3]} 70. dxc5 {[%clk 0:00:30.8]} 70... c2 {[%clk
0:01:13.2]} 71. Rxc2 {[%clk 0:00:31.6]} 71... Ka6 {[%clk 0:01:15.1]} 72. c6
{[%clk 0:00:32.6]} 72... Kb5 {[%clk 0:01:17]} 73. c7 {[%clk 0:00:33.7]} 73...
Kb6 {[%clk 0:01:18.1]} 74. c8=Q {[%clk 0:00:34.3]} 74... Ka7 {[%clk 0:01:20]}
75. Qc7+ {[%clk 0:00:34.2]} 75... Ka6 {[%clk 0:01:20.6]} 76. Qc4+ {[%clk
0:00:33]} 76... Ka5 {[%clk 0:01:21.2]} 77. Qb3 {[%clk 0:00:33]} 77... Ka6 {[%clk
0:01:22.2]} 78. g8=Q {[%clk 0:00:33.2]} 78... Ka5 {[%clk 0:01:23.2]} 79. e4
{[%clk 0:00:34]} 79... Ka6 {[%clk 0:01:24.4]} 80. e5 {[%clk 0:00:35.2]} 80...
Ka7 {[%clk 0:01:25.5]} 81. e6 {[%clk 0:00:36.3]} 81... Ka6 {[%clk 0:01:27.1]}
82. e7 {[%clk 0:00:37.5]} 82... Ka5 {[%clk 0:01:28.9]} 83. e8=Q {[%clk
0:00:38.1]} 83... Ka6 {[%clk 0:01:30.8]} 84. Qgc4+ {[%clk 0:00:34.6]} 84... Ka5
{[%clk 0:01:31.2]} 85. Qe5# {[%clk 0:00:32.5]} 1-0